[Event "Niedersachsen-ch A 2024"]
[Site "Verden Aller"]
[Date "2024.01.04"]
[Round "2.30"]
[White "Moerke, Niklas"]
[Black "Langer, Michael S."]
[Result "1/2-1/2"]
[ECO "D13"]
[WhiteElo "1800"]
[BlackElo "1888"]
[Annotator "NA RC"]
[PlyCount "28"]
[EventDate "2024.01.01"]
[EventType "swiss"]
[EventCountry "GER"]
[SourceTitle "playchess.com"]
[Source "ChessBase"]
[SourceQuality "1"]
[TimeControl "40/5400+30:1800+30"]

1. d4 {[%emt 0:00:12]} d5 {[%emt 0:00:24]} 2. c4 {[%emt 0:00:08]} c6 {[%emt 0:00:08]} 3. Nc3 {[%emt 0:01:05]} Nf6 {[%emt 0:00:10]} 4. Nf3 {[%emt 0:06:35]} a6 {[%emt 0:00:09]} 5. cxd5 {[%emt 0:01:59]} cxd5 {[%emt 0:00:09]} 6. Bf4 {[%emt 0:00:51]} Nc6 {[%emt 0:00:16]} 7. e3 {[%emt 0:00:21]} Bg4 {[%emt 0:00:14]} 8. Be2 {[%emt 0:02:09]} Bxf3 {[%emt 0:00:10]} 9. Bxf3 {[%emt 0:00:43]} e6 {[%emt 0:00:10]} 10. O-O {[%emt 0:01:46]} Bd6 {[%emt 0:00:09]} 11. Bxd6 {[%emt 0:00:31]} Qxd6 {[%emt 0:00:07]} 12. a3 {[%emt 0:02:08]} O-O {[%emt 0:01:44]} 13. b4 {[%emt 0:02:06]} Rac8 {[%emt 0:07:39]} 14. Qd3 {[%emt 0:02:06]} b5 {[%emt 0:02:05]} 1/2-1/2

[Event "Niedersachsen-ch A 2024"]
[Site "Verden Aller"]
[Date "2024.01.04"]
[Round "2.31"]
[White "ter Stal, Lars"]
[Black "Martin, Sam B"]
[Result "0-1"]
[ECO "B06"]
[WhiteElo "1770"]
[BlackElo "1939"]
[Annotator "NA RC"]
[PlyCount "21"]
[EventDate "2024.01.01"]
[EventType "swiss"]
[EventCountry "GER"]
[SourceTitle "playchess.com"]
[Source "ChessBase"]
[SourceQuality "1"]
[TimeControl "40/5400+30:1800+30"]

1. e4 {[%emt 0:00:02]} g6 {[%emt 0:00:07]} 2. d4 {[%emt 0:00:09]} Bg7 {[%emt 0:00:06]} 3. Bf4 {[%emt 0:01:23]} c5 {[%emt 0:03:34]} 4. c3 {[%emt 0:00:42]} cxd4 {[%emt 0:01:02]} 5. cxd4 {[%emt 0:00:08]} Qb6 {[%emt 0:03:28]} 6. Nf3 {[%emt 0:01:19]} Nc6 {[%emt 0:07:41]} 7. e5 {[%emt 0:02:44]} Qxb2 {[%emt 0:03:26]} 8. Nbd2 {[%emt 0:00:15]} Nxd4 {[%emt 0:02:35]} 9. Bd3 {[%emt 0:01:14]} Qc3 {[%emt 0:05:28]} 10. Be4 {[%emt 0:00:54]} Nxf3+ {[%emt 0:00:44]} 11. Qxf3 {[%emt 0:02:52]} 0-1

[Event "Niedersachsen-ch A 2024"]
[Site "Verden Aller"]
[Date "2024.01.04"]
[Round "2.32"]
[White "Vormann, Dirk"]
[Black "Ahlbrecht, Malte"]
[Result "0-1"]
[ECO "D12"]
[WhiteElo "1854"]
[BlackElo "1727"]
[Annotator "NA RC"]
[PlyCount "100"]
[EventDate "2024.01.01"]
[EventType "swiss"]
[EventCountry "GER"]
[SourceTitle "playchess.com"]
[Source "ChessBase"]
[SourceQuality "1"]
[TimeControl "40/5400+30:1800+30"]

1. d4 {[%emt 0:00:04]} d5 {[%emt 0:00:41]} 2. Nf3 {[%emt 0:00:06]} Nf6 {[%emt 0:00:51]} 3. e3 {[%emt 0:00:06]} Bf5 {[%emt 0:00:58]} 4. c4 {[%emt 0:00:14]} c6 {[%emt 0:01:15]} 5. Nc3 {[%emt 0:02:10]} g6 {[%emt 0:02:42]} 6. b3 {[%emt 0:03:30]} Na6 {[%emt 0:20:50]} 7. a3 {[%emt 0:00:55]} Bg7 {[%emt 0:01:47]} 8. Bb2 {[%emt 0:00:13]} O-O {[%emt 0:03:19]} 9. Bd3 {[%emt 0:00:39]} Bxd3 {[%emt 0:00:35]} 10. Qxd3 {[%emt 0:00:04]} c5 {[%emt 0:22:32]} 11. Nxd5 {[%emt 0:05:48]} Nxd5 {[%emt 0:00:48]} 12. cxd5 {[%emt 0:00:06]} Qxd5 {[%emt 0:10:07]} 13. e4 {[%emt 0:05:03]} Qd7 {[%emt 0:06:27]} 14. e5 {[%emt 0:02:26]} Qd5 {[%emt 0:07:18]} 15. O-O {[%emt 0:00:30]} cxd4 {[%emt 0:00:34]} 16. Bxd4 {[%emt 0:01:07]} Nc5 {[%emt 0:00:49]} 17. Qc4 {[%emt 0:07:23]} Qxc4 {[%emt 0:00:02]} 18. bxc4 {[%emt 0:00:01]} Nb3 {[%emt 0:00:30]} 19. Rad1 {[%emt 0:00:17]} Rfc8 {[%emt 0:07:42]} 20. Rd3 {[%emt 0:00:35]} Nxd4 {[%emt 0:08:27]} 21. Rxd4 {[%emt 0:00:02]} Rc7 {[%emt 0:00:08]} 22. g3 {[%emt 0:04:50]} Rac8 {[%emt 0:00:45]} 23. Rfd1 {[%emt 0:00:31]} Rxc4 {[%emt 0:01:50]} 24. Rxc4 {[%emt 0:01:38]} Rxc4 {[%emt 0:00:05]} 25. Rd7 {[%emt 1:04:42]} Rc3 {[%emt 0:00:49]} 26. Rd8+ {[%emt 0:00:00]} Bf8 {[%emt 0:00:01]} 27. Ng5 {[%emt 0:00:00]} h6 {[%emt 0:00:35]} 28. Nh7 {[%emt 0:00:00]} Kxh7 {[%emt 0:00:32]} 29. Rxf8 {[%emt 0:00:00]} Kg7 {[%emt 0:00:01]} 30. Re8 {[%emt 0:00:00]} e6 {[%emt 0:00:39]} 31. Re7 {[%emt 0:00:00]} Rb3 {[%emt 0:01:12]} 32. Rc7 {[%emt 0:00:00]} a6 {[%emt 0:00:23]} 33. a4 {[%emt 0:00:00]} Rb4 {[%emt 0:00:18]} 34. Kg2 {[%emt 0:00:00]} b5 {[%emt 0:01:12]} 35. axb5 {[%emt 0:00:00]} axb5 {[%emt 0:00:01]} 36. Rb7 {[%emt 0:00:00]} g5 {[%emt 0:00:10]} 37. h3 {[%emt 0:00:00]} h5 {[%emt 0:00:51]} 38. f4 {[%emt 0:00:00]} gxf4 {[%emt 0:00:40]} 39. gxf4 {[%emt 0:00:00]} Rxf4 {[%emt 0:00:31]} 40. Rxb5 {[%emt 0:00:00]} Rf5 {[%emt 0:00:02]} 41. Kg3 {[%emt 0:00:00]} Kg6 {[%emt 0:30:21]} 42. Kh4 {[%emt 0:00:00]} f6 {[%emt 0:01:33]} 43. Rb8 {[%emt 0:00:00]} Rxe5 {[%emt 0:00:00]} 44. Rg8+ {[%emt 0:00:00]} Kf7 {[%emt 0:00:00]} 45. Rh8 {[%emt 0:00:00]} Kg7 {[%emt 0:00:00]} 46. Re8 {[%emt 0:00:00]} Kf7 {[%emt 0:00:00]} 47. Rh8 {[%emt 0:00:00]} Rf5 {[%emt 0:00:00]} 48. Rh7+ {[%emt 0:00:00]} Kg6 {[%emt 0:00:00]} 49. Rh8 {[%emt 0:00:00]} Rf4+ {[%emt 0:00:00]} 50. Kg3 {[%emt 0:00:00]} e5 {[%emt 0:00:00]} 0-1

[Event "Niedersachsen-ch A 2024"]
[Site "Verden Aller"]
[Date "2024.01.04"]
[Round "2.33"]
[White "Trunz, Tamila"]
[Black "Schiller, Jan-Hendrik"]
[Result "0-1"]
[ECO "B94"]
[WhiteElo "1766"]
[BlackElo "1881"]
[Annotator "NA RC"]
[PlyCount "214"]
[EventDate "2024.01.01"]
[EventType "swiss"]
[EventCountry "GER"]
[SourceTitle "playchess.com"]
[Source "ChessBase"]
[SourceQuality "1"]
[TimeControl "40/5400+30:1800+30"]

1. e4 {[%emt 0:00:03]} c5 {[%emt 0:00:36]} 2. Nf3 {[%emt 0:00:05]} d6 {[%emt 0:00:15]} 3. d4 {[%emt 0:00:06]} cxd4 {[%emt 0:00:13]} 4. Nxd4 {[%emt 0:00:06]} Nf6 {[%emt 0:00:18]} 5. Nc3 {[%emt 0:00:09]} a6 {[%emt 0:00:11]} 6. Bg5 {[%emt 0:00:22]} Nbd7 {[%emt 0:00:18]} 7. f4 {[%emt 0:00:28]} Qc7 {[%emt 0:00:11]} 8. Qf3 {[%emt 0:00:37]} h6 {[%emt 0:00:43]} 9. Bh4 {[%emt 0:00:28]} g5 {[%emt 0:00:11]} 10. fxg5 {[%emt 0:03:51]} hxg5 {[%emt 0:00:22]} 11. Bxg5 {[%emt 0:01:20]} Qc5 {[%emt 0:00:15]} 12. Bxf6 {[%emt 0:03:53]} Nxf6 {[%emt 0:00:50]} 13. Nb3 {[%emt 0:00:45]} Qe5 {[%emt 0:02:44]} 14. h3 {[%emt 0:06:49]} Bg4 {[%emt 0:04:27]} 15. Qd3 {[%emt 0:06:29]} d5 {[%emt 0:03:52]} 16. Nd2 {[%emt 0:11:11]} Nxe4 {[%emt 0:05:31]} 17. Ndxe4 {[%emt 0:02:21]} dxe4 {[%emt 0:00:34]} 18. Nxe4 {[%emt 0:19:53]} Bf5 {[%emt 0:03:00]} 19. O-O-O {[%emt 0:01:27]} Bh6+ {[%emt 0:01:39]} 20. Kb1 {[%emt 0:00:18]} Qxe4 {[%emt 0:01:06]} 21. Qc3 {[%emt 0:01:11]} O-O {[%emt 0:04:02]} 22. Bd3 {[%emt 0:02:32]} Qe6 {[%emt 0:01:42]} 23. Rhe1 {[%emt 0:01:07]} Qg6 {[%emt 0:02:11]} 24. Rxe7 {[%emt 0:03:43]} Bg7 {[%emt 0:02:23]} 25. Bxf5 {[%emt 0:05:04]} Qxf5 {[%emt 0:01:38]} 26. Qb3 {[%emt 0:02:19]} Rad8 {[%emt 0:02:26]} 27. Rde1 {[%emt 0:01:49]} b5 {[%emt 0:03:06]} 28. a3 {[%emt 0:01:34]} a5 {[%emt 0:02:31]} 29. g4 {[%emt 0:05:11]} Qd5 {[%emt 0:03:26]} 30. Qxd5 {[%emt 0:03:20]} Rxd5 {[%emt 0:00:12]} 31. Rb7 {[%emt 0:01:03]} Bf6 {[%emt 0:02:43]} 32. Rf1 {[%emt 0:01:27]} Kg7 {[%emt 0:02:16]} 33. Rf5 {[%emt 0:00:51]} Rxf5 {[%emt 0:03:29]} 34. gxf5 {[%emt 0:00:06]} Bd8 {[%emt 0:00:53]} 35. Rxb5 {[%emt 0:00:07]} Rh8 {[%emt 0:00:59]} 36. Rd5 {[%emt 0:03:39]} Kf6 {[%emt 0:00:58]} 37. c4 {[%emt 0:04:55]} Bc7 {[%emt 0:01:23]} 38. Rd3 {[%emt 0:01:58]} Rb8 {[%emt 0:02:25]} 39. Kc2 {[%emt 0:00:27]} a4 {[%emt 0:01:41]} 40. c5 {[%emt 0:06:25]} Be5 {[%emt 0:01:09]} 41. Rd7 {[%emt 0:07:04]} Rxb2+ {[%emt 0:01:55]} 42. Kd3 {[%emt 0:00:15]} Rb3+ {[%emt 0:00:29]} 43. Ke4 {[%emt 0:02:33]} Rxa3 {[%emt 0:01:50]} 44. Ra7 {[%emt 0:00:35]} Bg3 {[%emt 0:02:09]} 45. Kd4 {[%emt 0:04:27]} Bf2+ {[%emt 0:01:23]} 46. Kd5 {[%emt 0:01:31]} Rc3 {[%emt 0:01:17]} 47. Rxa4 {[%emt 0:02:22]} Rxc5+ {[%emt 0:00:19]} 48. Ke4 {[%emt 0:00:31]} Re5+ {[%emt 0:00:24]} 49. Kf3 {[%emt 0:00:50]} Rxf5+ {[%emt 0:01:03]} 50. Kg4 {[%emt 0:00:14]} Kg6 {[%emt 0:01:29]} 51. Ra6+ {[%emt 0:00:41]} Rf6 {[%emt 0:00:11]} 52. Ra5 {[%emt 0:00:16]} Re6 {[%emt 0:01:01]} 53. Rg5+ {[%emt 0:00:19]} Kh7 {[%emt 0:01:06]} 54. Rf5 {[%emt 0:00:16]} Be1 {[%emt 0:02:32]} 55. Rxf7+ {[%emt 0:00:08]} Kg6 {[%emt 0:00:09]} 56. Rb7 {[%emt 0:01:45]} Kh6 {[%emt 0:01:42]} 57. Rb5 {[%emt 0:00:17]} Rg6+ {[%emt 0:00:18]} 58. Kf4 {[%emt 0:00:58]} Bd2+ {[%emt 0:01:20]} 59. Kf3 {[%emt 0:00:27]} Bg5 {[%emt 0:00:58]} 60. Rd5 {[%emt 0:00:16]} Bh4 {[%emt 0:02:44]} 61. Ke4 {[%emt 0:02:09]} Rg3 {[%emt 0:00:38]} 62. Rd6+ {[%emt 0:00:23]} Kh5 {[%emt 0:00:36]} 63. Rd5+ {[%emt 0:00:29]} Bg5 {[%emt 0:00:15]} 64. Rd3 {[%emt 0:00:14]} Rg1 {[%emt 0:00:17]} 65. Kd5 {[%emt 0:00:32]} Kh4 {[%emt 0:01:07]} 66. Ke4 {[%emt 0:00:08]} Re1+ {[%emt 0:01:42]} 67. Kf3 {[%emt 0:00:52]} Rb1 {[%emt 0:02:06]} 68. Kg2 {[%emt 0:00:24]} Rb2+ {[%emt 0:01:05]} 69. Kf1 {[%emt 0:00:22]} Bf4 {[%emt 0:00:26]} 70. Rd4 {[%emt 0:00:54]} Kg3 {[%emt 0:01:26]} 71. Rd3+ {[%emt 0:00:28]} Kh2 {[%emt 0:00:26]} 72. Ke1 {[%emt 0:05:37]} Bg3+ {[%emt 0:00:33]} 73. Kd1 {[%emt 0:00:09]} Kxh3 {[%emt 0:00:13]} 74. Rd2 {[%emt 0:00:12]} Rb7 {[%emt 0:01:36]} 75. Kc2 {[%emt 0:00:21]} Kg4 {[%emt 0:00:17]} 76. Rd4+ {[%emt 0:00:29]} Kf5 {[%emt 0:00:31]} 77. Ra4 {[%emt 0:00:28]} Rd7 {[%emt 0:00:24]} 78. Ra3 {[%emt 0:00:15]} Be5 {[%emt 0:00:36]} 79. Rd3 {[%emt 0:00:08]} Rc7+ {[%emt 0:00:14]} 80. Kd2 {[%emt 0:00:22]} Bf4+ {[%emt 0:00:24]} 81. Ke2 {[%emt 0:00:28]} Ke4 {[%emt 0:00:14]} 82. Ra3 {[%emt 0:00:09]} Rc2+ {[%emt 0:00:12]} 83. Kd1 {[%emt 0:00:41]} Rd2+ {[%emt 0:00:23]} 84. Ke1 {[%emt 0:00:07]} Rh2 {[%emt 0:01:03]} 85. Ra4+ {[%emt 0:00:18]} Kf3 {[%emt 0:00:15]} 86. Ra3+ {[%emt 0:00:14]} Be3 {[%emt 0:00:12]} 87. Kd1 {[%emt 0:00:21]} Rd2+ {[%emt 0:00:21]} 88. Ke1 {[%emt 0:00:27]} Rd7 {[%emt 0:01:59]} 89. Rb3 {[%emt 0:00:50]} Rd2 {[%emt 0:01:41]} 90. Rb7 {[%emt 0:01:23]} Ra2 {[%emt 0:01:12]} 91. Kd1 {[%emt 0:01:39]} Rd2+ {[%emt 0:00:17]} 92. Ke1 {[%emt 0:00:07]} Rc2 {[%emt 0:00:15]} 93. Rb1 {[%emt 0:00:19]} Ra2 {[%emt 0:01:24]} 94. Kd1 {[%emt 0:00:26]} Rd2+ {[%emt 0:01:46]} 95. Ke1 {[%emt 0:00:08]} Rd3 {[%emt 0:01:09]} 96. Rb2 {[%emt 0:00:49]} Bd4 {[%emt 0:00:27]} 97. Rb1 {[%emt 0:00:23]} Bc3+ {[%emt 0:01:10]} 98. Kf1 {[%emt 0:00:05]} Rd2 {[%emt 0:03:01]} 99. Rc1 {[%emt 0:02:05]} Rf2+ {[%emt 0:00:34]} 100. Kg1 {[%emt 0:00:08]} Be5 {[%emt 0:00:59]} 101. Rd1 {[%emt 0:00:49]} Bf4 {[%emt 0:00:50]} 102. Rd7 {[%emt 0:01:46]} Rc2 {[%emt 0:00:57]} 103. Rd3+ {[%emt 0:01:31]} Be3+ {[%emt 0:00:17]} 104. Kh1 {[%emt 0:00:14]} Re2 {[%emt 0:00:45]} 105. Rd7 {[%emt 0:01:19]} Re1+ {[%emt 0:00:23]} 106. Kh2 {[%emt 0:00:09]} Bf4+ {[%emt 0:00:10]} 107. Kh3 {[%emt 0:00:09]} Rh1# {[%emt 0:44:04]} 0-1

[Event "Niedersachsen-ch A 2024"]
[Site "Verden Aller"]
[Date "2024.01.04"]
[Round "2.34"]
[White "Monnerjahn, Lukas"]
[Black "Burnus, Finn Crispin"]
[Result "1-0"]
[ECO "E02"]
[WhiteElo "1856"]
[BlackElo "1655"]
[Annotator "NA RC"]
[PlyCount "115"]
[EventDate "2024.01.01"]
[EventType "swiss"]
[EventCountry "GER"]
[SourceTitle "playchess.com"]
[Source "ChessBase"]
[SourceQuality "1"]
[TimeControl "40/5400+30:1800+30"]

1. d4 {[%emt 0:00:04]} Nf6 {[%emt 0:00:08]} 2. c4 {[%emt 0:00:05]} e6 {[%emt 0:00:09]} 3. Nf3 {[%emt 0:00:07]} d5 {[%emt 0:00:09]} 4. g3 {[%emt 0:00:08]} Be7 {[%emt 0:00:18]} 5. Bg2 {[%emt 0:00:04]} O-O {[%emt 0:01:32]} 6. O-O {[%emt 0:00:04]} dxc4 {[%emt 0:00:06]} 7. Qc2 {[%emt 0:00:27]} Nbd7 {[%emt 0:00:13]} 8. Qxc4 {[%emt 0:02:30]} c5 {[%emt 0:01:39]} 9. dxc5 {[%emt 0:01:33]} Nxc5 {[%emt 0:01:12]} 10. Nc3 {[%emt 0:01:21]} Bd7 {[%emt 0:05:02]} 11. Rd1 {[%emt 0:06:57]} Rc8 {[%emt 0:02:07]} 12. Ne5 {[%emt 0:02:47]} Qc7 {[%emt 0:04:31]} 13. Bf4 {[%emt 0:09:42]} Qb6 {[%emt 0:00:47]} 14. Nxd7 {[%emt 0:04:23]} Ncxd7 {[%emt 0:02:12]} 15. Qb5 {[%emt 0:03:22]} Qxb5 {[%emt 0:05:42]} 16. Nxb5 {[%emt 0:00:11]} a6 {[%emt 0:00:08]} 17. Nc3 {[%emt 0:07:15]} e5 {[%emt 0:02:03]} 18. Be3 {[%emt 0:05:35]} Rc7 {[%emt 0:02:33]} 19. Rac1 {[%emt 0:07:02]} Rfc8 {[%emt 0:05:19]} 20. a3 {[%emt 0:04:01]} h6 {[%emt 0:15:22]} 21. Bh3 {[%emt 0:06:12]} Rd8 {[%emt 0:15:40]} 22. Rc2 {[%emt 0:13:06]} Kf8 {[%emt 0:07:37]} 23. Rcd2 {[%emt 0:01:37]} Ke8 {[%emt 0:01:15]} 24. Kf1 {[%emt 0:04:12]} Bc5 {[%emt 0:03:29]} 25. Bxc5 {[%emt 0:04:32]} Rxc5 {[%emt 0:00:10]} 26. Na4 {[%emt 0:00:34]} Rcc8 {[%emt 0:03:44]} 27. b4 {[%emt 0:01:30]} g5 {[%emt 0:03:05]} 28. Bf5 {[%emt 0:01:57]} Ke7 {[%emt 0:06:39]} 29. e4 {[%emt 0:02:28]} Rb8 {[%emt 0:00:55]} 30. Ke2 {[%emt 0:01:58]} b5 {[%emt 0:01:07]} 31. Nc3 {[%emt 0:01:39]} Nb6 {[%emt 0:00:13]} 32. Rxd8 {[%emt 0:05:38]} Rxd8 {[%emt 0:00:09]} 33. Rxd8 {[%emt 0:00:07]} Kxd8 {[%emt 0:00:02]} 34. Kd3 {[%emt 0:00:09]} Kc7 {[%emt 0:01:41]} 35. Kc2 {[%emt 0:00:49]} Nc4 {[%emt 0:02:06]} 36. a4 {[%emt 0:00:44]} bxa4 {[%emt 0:00:47]} 37. Nxa4 {[%emt 0:00:58]} Nd6 {[%emt 0:01:56]} 38. Nc5 {[%emt 0:00:26]} Kb6 {[%emt 0:01:38]} 39. Nd3 {[%emt 0:01:45]} Nc4 {[%emt 0:02:48]} 40. Kc3 {[%emt 0:00:56]} Kb5 {[%emt 0:01:18]} 41. f3 {[%emt 0:01:50]} h5 {[%emt 0:04:01]} 42. Bh3 {[%emt 0:02:35]} g4 {[%emt 0:00:33]} 43. Bf1 {[%emt 0:00:26]} Ne3 {[%emt 0:13:26]} 44. Be2 {[%emt 0:00:09]} gxf3 {[%emt 0:00:24]} 45. Bxf3 {[%emt 0:00:02]} Nf1 {[%emt 0:03:17]} 46. Nxe5 {[%emt 0:02:44]} Nxh2 {[%emt 0:00:08]} 47. Be2+ {[%emt 0:00:32]} Kb6 {[%emt 0:00:41]} 48. Kd4 {[%emt 0:00:40]} a5 {[%emt 0:01:24]} 49. bxa5+ {[%emt 0:07:01]} Kxa5 {[%emt 0:00:02]} 50. Nxf7 {[%emt 0:00:16]} Nhg4 {[%emt 0:00:53]} 51. e5 {[%emt 0:01:18]} Ne8 {[%emt 0:00:18]} 52. Bxg4 {[%emt 0:00:18]} hxg4 {[%emt 0:00:08]} 53. Nh6 {[%emt 0:00:13]} Kb6 {[%emt 0:00:09]} 54. Nxg4 {[%emt 0:00:15]} Kc6 {[%emt 0:00:05]} 55. Nf6 {[%emt 0:00:29]} Nxf6 {[%emt 0:00:29]} 56. exf6 {[%emt 0:00:04]} Kd6 {[%emt 0:00:07]} 57. g4 {[%emt 0:00:10]} Ke6 {[%emt 0:00:08]} 58. g5 {[%emt 0:21:33]} 1-0

[Event "Niedersachsen-ch A 2024"]
[Site "Verden Aller"]
[Date "2024.01.04"]
[Round "2.35"]
[White "Hoke, Joshua"]
[Black "Harms, Friedjof"]
[Result "1/2-1/2"]
[ECO "C65"]
[WhiteElo "1600"]
[BlackElo "1844"]
[Annotator "NA RC"]
[PlyCount "59"]
[EventDate "2024.01.01"]
[EventType "swiss"]
[EventCountry "GER"]
[SourceTitle "playchess.com"]
[Source "ChessBase"]
[SourceQuality "1"]
[TimeControl "40/5400+30:1800+30"]

1. e4 {[%emt 0:00:04]} e5 {[%emt 0:00:04]} 2. Nf3 {[%emt 0:00:06]} Nc6 {[%emt 0:00:05]} 3. Bb5 {[%emt 0:00:06]} Bc5 {[%emt 0:00:05]} 4. c3 {[%emt 0:03:04]} Nf6 {[%emt 0:00:19]} 5. O-O {[%emt 0:00:35]} O-O {[%emt 0:01:49]} 6. d4 {[%emt 0:01:10]} Bb6 {[%emt 0:02:12]} 7. Re1 {[%emt 0:04:59]} d6 {[%emt 0:07:41]} 8. h3 {[%emt 0:12:47]} Bd7 {[%emt 0:07:52]} 9. dxe5 {[%emt 0:03:51]} Nxe5 {[%emt 0:15:34]} 10. Bxd7 {[%emt 0:02:55]} Nexd7 {[%emt 0:10:06]} 11. Bg5 {[%emt 0:03:09]} h6 {[%emt 0:02:13]} 12. Bh4 {[%emt 0:02:42]} Re8 {[%emt 0:08:15]} 13. Nbd2 {[%emt 0:00:55]} g5 {[%emt 0:09:48]} 14. Bg3 {[%emt 0:01:34]} Nh5 {[%emt 0:03:12]} 15. Bh2 {[%emt 0:06:32]} Qf6 {[%emt 0:02:35]} 16. Nd4 {[%emt 0:10:16]} Nf4 {[%emt 0:02:16]} 17. N2f3 {[%emt 0:05:46]} Ne5 {[%emt 0:02:46]} 18. Nxe5 {[%emt 0:08:30]} dxe5 {[%emt 0:05:33]} 19. Nf5 {[%emt 0:00:36]} Rad8 {[%emt 0:00:46]} 20. Qc2 {[%emt 0:01:56]} Rd7 {[%emt 0:09:32]} 21. Rad1 {[%emt 0:02:34]} Red8 {[%emt 0:00:04]} 22. Rxd7 {[%emt 0:00:55]} Rxd7 {[%emt 0:00:01]} 23. Rd1 {[%emt 0:02:31]} Rxd1+ {[%emt 0:01:57]} 24. Qxd1 {[%emt 0:00:06]} Kh7 {[%emt 0:01:20]} 25. h4 {[%emt 0:09:58]} Kg6 {[%emt 0:03:31]} 26. hxg5 {[%emt 0:04:10]} Qxg5 {[%emt 0:01:10]} 27. Bg3 {[%emt 0:03:11]} h5 {[%emt 0:00:42]} 28. Qf3 {[%emt 0:04:32]} Qg4 {[%emt 0:00:40]} 29. Bxf4 {[%emt 0:05:30]} Qxf3 {[%emt 0:02:52]} 30. Nh4+ {[%emt 0:00:30]} 1/2-1/2

[Event "Niedersachsen-ch A 2024"]
[Site "Verden Aller"]
[Date "2024.01.05"]
[Round "3.1"]
[White "Carlstedt, Jonathan"]
[Black "Jacobi, Felix-Hagen"]
[Result "0-1"]
[ECO "A47"]
[WhiteElo "2447"]
[BlackElo "2056"]
[Annotator "RC"]
[PlyCount "84"]
[EventDate "2024.01.01"]
[EventType "swiss"]
[EventCountry "GER"]
[SourceTitle "playchess.com"]
[Source "ChessBase"]
[SourceQuality "1"]
[TimeControl "40/5400+30:1800+30"]

1. d4 {[%emt 0:00:20]} c5 {[%emt 0:00:31]} 2. c3 {[%emt 0:00:10]} e6 {[%emt 0:02:27]} 3. Nf3 {[%emt 0:02:47]} Nf6 {[%emt 0:01:02]} 4. Bf4 {[%emt 0:03:36]} Be7 {[%emt 0:08:50]} 5. h3 {[%emt 0:06:44]} b6 {[%emt 0:03:58]} 6. e3 {[%emt 0:00:15]} O-O {[%emt 0:02:24]} 7. Nbd2 {[%emt 0:00:11]} d5 {[%emt 0:01:08]} 8. Ne5 {[%emt 0:12:53]} Nfd7 {[%emt 0:03:32]} 9. Bd3 {[%emt 0:02:54]} Nxe5 {[%emt 0:13:20]} 10. dxe5 {[%emt 0:00:24]} Ba6 {[%emt 0:06:54]} 11. Bxa6 {[%emt 0:02:27]} Nxa6 {[%emt 0:00:24]} 12. Qg4 {[%emt 0:00:15]} Kh8 {[%emt 0:04:25]} 13. h4 {[%emt 0:01:05]} d4 {[%emt 0:11:03]} 14. Rh3 {[%emt 0:12:33]} dxc3 {[%emt 0:07:34]} 15. bxc3 {[%emt 0:00:06]} Qd3 {[%emt 0:00:59]} 16. e4 {[%emt 0:00:35]} Qc2 {[%emt 0:00:21]} 17. Rg3 {[%emt 0:05:25]} Rg8 {[%emt 0:00:46]} 18. Bg5 {[%emt 0:02:16]} f5 {[%emt 0:08:13]} 19. Qe2 {[%emt 0:04:15]} Bxg5 {[%emt 0:01:28]} 20. hxg5 {[%emt 0:00:10]} Rad8 {[%emt 0:00:03]} 21. Rd1 {[%emt 0:05:09]} Nc7 {[%emt 0:01:36]} 22. g6 {[%emt 0:03:27]} h6 {[%emt 0:01:11]} 23. exf5 {[%emt 0:01:51]} Qxf5 {[%emt 0:00:46]} 24. Nf3 {[%emt 0:02:03]} Rxd1+ {[%emt 0:01:11]} 25. Qxd1 {[%emt 0:00:15]} Nd5 {[%emt 0:00:28]} 26. Kf1 {[%emt 0:10:59]} Nf4 {[%emt 0:02:40]} 27. Kg1 {[%emt 0:05:11]} Rf8 {[%emt 0:02:47]} 28. Nh2 {[%emt 0:04:57]} Nxg6 {[%emt 0:03:40]} 29. Ng4 {[%emt 0:02:44]} Nxe5 {[%emt 0:01:06]} 30. Qe1 {[%emt 0:00:43]} Ng6 {[%emt 0:02:03]} 31. Qe3 {[%emt 0:00:10]} Kh7 {[%emt 0:02:23]} 32. f3 {[%emt 0:02:24]} Rd8 {[%emt 0:03:04]} 33. Qe1 {[%emt 0:03:18]} Nf4 {[%emt 0:02:02]} 34. Ne3 {[%emt 0:00:32]} Qd3 {[%emt 0:00:34]} 35. Rg4 {[%emt 0:00:46]} Ne2+ {[%emt 0:01:06]} 36. Kf2 {[%emt 0:00:01]} Nxc3 {[%emt 0:00:10]} 37. Nc4 {[%emt 0:00:05]} Qc2+ {[%emt 0:00:30]} 38. Kg3 {[%emt 0:00:19]} Ne2+ {[%emt 0:00:25]} 39. Kh2 {[%emt 0:00:59]} Rd1 {[%emt 0:01:07]} 40. Qf2 {[%emt 0:01:03]} Nd4 {[%emt 0:01:00]} 41. Qe3 {[%emt 0:06:55]} Qf5 {[%emt 0:04:45]} 42. Ne5 {[%emt 0:02:38]} Qh5+ {[%emt 0:00:38]} 0-1

[Event "Niedersachsen-ch A 2024"]
[Site "Verden Aller"]
[Date "2024.01.05"]
[Round "3.2"]
[White "Loecken, Siegfried"]
[Black "Stotyn, Fabian"]
[Result "*"]
[ECO "C00"]
[WhiteElo "2014"]
[BlackElo "2139"]
[Annotator "RC"]
[PlyCount "41"]
[EventDate "2024.01.01"]
[EventType "swiss"]
[EventCountry "GER"]
[SourceTitle "playchess.com"]
[Source "ChessBase"]
[SourceQuality "1"]
[TimeControl "40/5400+30:1800+30"]

1. e4 {[%emt 0:00:03]} e6 {[%emt 0:00:16]} 2. d3 {[%emt 0:00:10]} d5 {[%emt 0:00:16]} 3. Nd2 {[%emt 0:00:04]} Nf6 {[%emt 0:00:39]} 4. Ngf3 {[%emt 0:01:26]} c5 {[%emt 0:01:23]} 5. g3 {[%emt 0:00:03]} Nc6 {[%emt 0:00:45]} 6. Bg2 {[%emt 0:00:04]} b5 {[%emt 0:02:38]} 7. O-O {[%emt 1:32:10]} a5 {[%emt 0:01:23]} 8. exd5 {[%emt 1:32:28]} exd5 {[%emt 0:01:25]} 9. d4 {[%emt 0:01:46]} c4 {[%emt 0:01:28]} 10. a4 {[%emt 0:00:34]} Ba6 {[%emt 0:07:58]} 11. Re1+ {[%emt 0:25:13]} Be7 {[%emt 1:17:49]} 12. Ne5 {[%emt 0:04:44]} Rc8 {[%emt 0:14:02]} 13. Ndf3 {[%emt 0:07:42]} bxa4 {[%emt 0:13:29]} 14. Bh3 {[%emt 0:01:51]} Rc7 {[%emt 0:02:10]} 15. Bf4 {[%emt 0:12:37]} O-O {[%emt 0:49:52]} 16. Nxf7 {[%emt 0:00:54]} Rxf7 {[%emt 0:01:13]} 17. Bxc7 {[%emt 0:00:49]} Qxc7 {[%emt 0:00:03]} 18. Ng5 {[%emt 0:05:04]} Bc8 {[%emt 0:01:29]} 19. Bxc8 {[%emt 0:01:43]} Qxc8 {[%emt 0:00:18]} 20. Nxf7 {[%emt 0:00:09]} Kxf7 {[%emt 0:00:03]} 21. c3 {[%emt 0:00:32]} *